bitfinex/quotes_BTCUSD_20230403
["timestamp","ask_amount","ask_price","bid_price","bid_amount"]
[1680528356184,0.0149336,28158.0,28157.0,0.65170084]
[1680528356413,0.0149336,28158.0,28157.0,2.08795919]
[1680528356644,0.0149336,28158.0,28157.0,1.77624987]
[1680528357076,0.0149336,28158.0,28157.0,2.35614987]
[1680528357302,0.0149336,28158.0,28157.0,2.31575468]
[1680528357546,0.01228312,28158.0,28157.0,2.77801092]
[1680528357771,0.01228312,28158.0,28157.0,3.03278833]
[1680528358001,0.01228312,28158.0,28157.0,3.11993962]
[1680528358226,0.01228312,28158.0,28157.0,3.14793962]
[1680528358452,0.00965723,28158.0,28157.0,3.11993962]
[1680528358681,0.00965723,28158.0,28157.0,3.14793962]
[1680528359181,0.00965723,28158.0,28157.0,2.62188489]
[1680528359418,0.00704144,28158.0,28157.0,2.10014419]
[1680528359869,0.00704144,28158.0,28157.0,2.15688489]
[1680528360113,0.00704144,28158.0,28157.0,2.18488489]
[1680528360342,0.00443571,28158.0,28157.0,2.18488489]
[1680528360662,0.00443571,28158.0,28157.0,2.23700539]
[1680528361099,0.00443571,28158.0,28157.0,2.15226469]
[1680528361362,0.00184,28158.0,28157.0,2.15226469]
[1680528362464,0.02383,28165.0,28157.0,2.15226469]
[1680528362698,0.37880497,28165.0,28158.0,0.48609487]
[1680528362924,0.37880497,28165.0,28160.0,0.124288]
[1680528363158,0.37880497,28165.0,28162.0,0.053262]
[1680528363448,0.37880497,28165.0,28162.0,0.19523687]
[1680528363731,0.37880497,28165.0,28162.0,0.053262]
[1680528364005,0.37880497,28165.0,28163.0,0.5316]
[1680528364277,0.37880497,28165.0,28164.0,0.053259]
[1680528364816,0.02383,28165.0,28164.0,0.618959]
[1680528365792,0.10783,28165.0,28164.0,0.646959]
[1680528366015,0.09955,28165.0,28164.0,0.692843]
[1680528366486,0.09955,28165.0,28164.0,0.689723]
[1680528366725,0.09955,28165.0,28164.0,0.646959]
[1680528367389,0.09955,28165.0,28164.0,0.647139]
[1680528367848,0.09955,28165.0,28164.0,0.69274]
[1680528368076,0.01555,28165.0,28164.0,0.69292]
[1680528368551,0.01555,28165.0,28164.0,0.7186213]
[1680528369708,0.01555,28165.0,28164.0,0.6906213]
[1680528369934,0.01555,28165.0,28164.0,0.7186213]
[1680528370173,0.01555,28165.0,28164.0,0.6906213]
[1680528370400,0.01555,28165.0,28164.0,0.7186213]
[1680528372696,0.01555,28165.0,28164.0,0.6906213]
[1680528372922,0.01555,28165.0,28164.0,0.7186213]
[1680528373164,0.01555,28165.0,28164.0,0.6906213]
[1680528373385,0.01555,28165.0,28164.0,0.7186213]
[1680528373632,0.01555,28165.0,28164.0,0.6906213]
[1680528373865,0.01555,28165.0,28164.0,0.7186213]
[1680528374125,0.09965,28165.0,28164.0,0.6372743]
[1680528374364,0.313317,28165.0,28164.0,0.6371543]
[1680528374606,0.21555,28165.0,28164.0,0.6373343]
[1680528375087,0.01573,28165.0,28164.0,0.6831723]
[1680528375327,0.01555,28165.0,28164.0,0.6551723]
[1680528375560,0.01555,28165.0,28164.0,0.6831723]
[1680528375777,0.01555,28165.0,28164.0,0.6551723]
[1680528376006,0.01555,28165.0,28164.0,0.6831723]
[1680528376238,0.01555,28165.0,28164.0,0.6551723]
[1680528376456,0.01555,28165.0,28164.0,0.6831723]
[1680528378288,0.01555,28165.0,28164.0,0.6833523]
[1680528385144,0.01485,28165.0,28164.0,0.6831723]
[1680528388978,0.01485,28165.0,28164.0,1.03814727]
[1680528389195,0.01485,28165.0,28164.0,1.37780858]
[1680528390326,0.01485,28165.0,28164.0,2.46341858]
[1680528390553,0.00594352,28165.0,28164.0,2.46323858]
[1680528390792,0.00594352,28165.0,28164.0,2.43523858]
[1680528391034,0.00594352,28165.0,28164.0,2.46323858]
[1680528391486,0.00594352,28165.0,28164.0,2.43523858]
[1680528391714,0.00594352,28165.0,28164.0,2.43541858]
[1680528392232,0.00594352,28165.0,28164.0,2.46341858]
[1680528392460,0.02321,28168.0,28164.0,2.46341858]
[1680528392461,0.01450625,28168.0,28167.0,1.311129]
[1680528392684,0.01450625,28168.0,28167.0,2.05888397]
[1680528392905,0.01450625,28168.0,28167.0,2.05870397]
[1680528393355,0.01221479,28168.0,28167.0,2.08161859]
[1680528394040,0.01221479,28168.0,28167.0,2.46740285]
[1680528394463,0.00994903,28168.0,28167.0,2.46740285]
[1680528394900,0.00994903,28168.0,28167.0,2.49540285]
[1680528395322,0.00770547,28168.0,28167.0,2.49540285]
[1680528395958,0.00770547,28168.0,28167.0,2.46740285]
[1680528396191,0.00770547,28168.0,28167.0,2.54909566]
[1680528396409,0.00548845,28168.0,28167.0,2.52109566]
[1680528396857,0.00548845,28168.0,28167.0,2.54909566]
[1680528397145,0.00548845,28168.0,28167.0,2.52109566]
[1680528397384,0.00329291,28168.0,28167.0,2.54909566]
[1680528397609,0.01460629,28175.0,28174.0,0.418982]
[1680528397836,0.01,28179.0,28174.0,1.69169284]
[1680528398083,0.01,28179.0,28176.0,0.3737]
[1680528398337,0.01,28179.0,28177.0,1.33816784]
[1680528398562,0.01,28179.0,28178.0,0.418952]
[1680528398823,0.01,28179.0,28178.0,0.89541397]
[1680528399058,0.01,28179.0,28178.0,0.362996]
[1680528399742,0.01,28179.0,28178.0,0.71797097]
[1680528399967,0.01,28179.0,28178.0,1.09167097]
[1680528400202,0.01,28179.0,28178.0,0.71797097]
[1680528400435,0.01,28179.0,28178.0,0.74597097]
[1680528401366,0.00793548,28179.0,28178.0,1.14031621]
[1680528402409,0.0058789,28179.0,28178.0,0.76661621]
[1680528402610,0.0058789,28179.0,28178.0,0.81900099]
[1680528402883,0.0058789,28179.0,28178.0,0.79100099]
[1680528403022,0.0058789,28179.0,28178.0,0.81900099]
[1680528403246,0.0058789,28179.0,28178.0,0.79100099]
[1680528403492,0.0058789,28179.0,28178.0,0.81900099]
[1680528403709,0.0058189,28179.0,28178.0,0.81900099]
[1680528404353,0.0058189,28179.0,28178.0,0.79100099]
[1680528404561,0.0058189,28179.0,28178.0,0.81900099]
[1680528404792,0.0058189,28179.0,28178.0,0.79100099]
[1680528405016,0.0058189,28179.0,28178.0,0.46402602]
[1680528406529,0.0058189,28179.0,28178.0,0.43602602]
[1680528408345,0.0058189,28179.0,28178.0,0.46402602]
[1680528408597,0.0058189,28179.0,28178.0,0.43602602]
[1680528408841,0.0058189,28179.0,28178.0,0.81900099]
[1680528409105,0.0058189,28179.0,28178.0,0.79100099]
[1680528409331,0.0058189,28179.0,28178.0,0.81900099]
[1680528410236,0.0058189,28179.0,28178.0,0.79100099]
[1680528410457,0.0058189,28179.0,28178.0,0.81900099]
[1680528410675,0.0058189,28179.0,28178.0,0.79100099]
[1680528410895,1.9568,28186.0,28178.0,1.41855586]
[1680528411131,1.9568,28186.0,28180.0,0.03553]
[1680528411363,0.86498,28189.0,28182.0,0.03553]
[1680528411615,0.8648,28189.0,28184.0,0.124181]
[1680528411835,0.4673,28189.0,28185.0,0.14197487]
[1680528412080,0.4673,28189.0,28186.0,0.053217]
[1680528412314,0.15,28188.0,28186.0,0.053217]
[1680528412554,0.00018,28190.0,28186.0,0.053217]
[1680528412781,0.35497497,28189.0,28186.0,0.053217]
[1680528413877,0.35497497,28189.0,28186.0,0.081217]
[1680528414113,0.35497497,28189.0,28186.0,0.053217]
[1680528414330,0.35497497,28189.0,28186.0,0.081217]
[1680528414555,0.00018,28190.0,28186.0,0.053217]
[1680528414788,0.35497497,28190.0,28186.0,0.081217]
[1680528415035,0.0841,28187.0,28186.0,0.053217]
[1680528415276,0.51305924,28187.0,28186.0,0.028]
[1680528415519,0.52680824,28187.0,28186.0,0.028]
[1680528415746,0.45282397,28187.0,28186.0,0.028]
[1680528415970,0.55282397,28187.0,28186.0,0.028]
[1680528416439,0.013604,28184.0,28183.0,0.017741]
[1680528416682,0.097404,28184.0,28183.0,0.017741]
[1680528416908,0.097404,28184.0,28182.0,0.017741]
[1680528417133,0.0838,28184.0,28182.0,0.017741]
[1680528417603,0.0838,28184.0,28183.0,0.021]
[1680528417832,0.0838,28184.0,28183.0,0.017741]
[1680528418053,0.097293,28184.0,28183.0,0.017741]
[1680528419362,0.013493,28184.0,28183.0,0.017741]
[1680528419582,0.60256797,28184.0,28183.0,0.021]
[1680528419807,0.94645236,28184.0,28183.0,0.021]
[1680528420038,1.12385236,28184.0,28183.0,0.021]
[1680528420270,0.18,28182.0,28179.0,0.017743]
[1680528420517,0.45182597,28181.0,28179.0,0.017743]
[1680528420757,0.180679,28180.0,28177.0,0.00018]
[1680528420995,0.084,28178.0,28175.0,0.06469516]
[1680528421238,0.15808427,28177.0,28174.0,0.017926]
[1680528421480,0.014233,28176.0,28174.0,0.017746]
[1680528421949,0.098494,28175.0,28174.0,0.017746]
[1680528422177,0.084,28175.0,28174.0,0.017746]
[1680528423125,0.084,28175.0,28174.0,0.038746]
[1680528423350,0.084,28175.0,28174.0,0.017746]
[1680528423570,0.084,28175.0,28174.0,0.038746]
[1680528424006,0.084,28175.0,28174.0,0.017746]
[1680528424237,0.084,28175.0,28174.0,0.045746]
[1680528424449,0.084,28175.0,28174.0,0.017746]
[1680528425459,0.084,28175.0,28174.0,0.045746]
[1680528425740,0.084,28175.0,28174.0,0.017746]
[1680528425957,0.084,28175.0,28174.0,0.045746]
[1680528426180,0.084,28175.0,28174.0,0.017746]
[1680528426404,0.0836,28176.0,28174.0,0.045746]
[1680528427253,0.0836,28176.0,28174.0,0.017746]
[1680528427470,0.0836,28176.0,28174.0,0.045746]
[1680528428153,0.61877497,28179.0,28174.0,0.045746]
[1680528428372,0.61877497,28179.0,28174.0,0.18772087]
[1680528428587,0.61877497,28179.0,28174.0,0.18790087]
[1680528428588,0.2638,28179.0,28174.0,0.18790087]
[1680528428802,0.2638,28179.0,28174.0,0.15990087]
[1680528429038,0.2638,28179.0,28174.0,0.045926]
[1680528429273,0.2638,28179.0,28174.0,0.017746]
[1680528429540,0.2638,28179.0,28174.0,0.045746]
[1680528431517,0.2638,28179.0,28176.0,0.017745]
[1680528431731,0.014607,28178.0,28175.0,0.03657869]
[1680528431974,0.2338,28178.0,28175.0,0.03657869]
[1680528432189,0.0838,28178.0,28175.0,0.03657869]
[1680528432432,0.0838,28178.0,28176.0,0.028]
[1680528432636,0.0838,28178.0,28176.0,0.045745]
[1680528432868,0.43877497,28178.0,28175.0,0.01883369]
[1680528433102,0.510773,28176.0,28175.0,0.04683369]
[1680528433317,0.86574797,28176.0,28171.0,0.00018]
[1680528433543,0.0841,28174.0,28170.0,0.00018]
[1680528433760,0.15808427,28174.0,28171.0,0.017748]
[1680528433970,0.15808427,28174.0,28171.0,0.017928]
[1680528433971,0.0841,28174.0,28171.0,0.017928]
[1680528434186,0.0841,28174.0,28171.0,0.017748]
[1680528435337,0.0841,28174.0,28171.0,0.045748]
[1680528440349,0.00018,28175.0,28171.0,0.045748]
[1680528440571,0.53515497,28176.0,28171.0,0.045748]
[1680528440791,0.53515497,28176.0,28171.0,0.18772287]
[1680528441430,0.53515497,28176.0,28171.0,0.017748]
[1680528441675,0.53515497,28176.0,28171.0,0.045748]
[1680528442546,0.00018,28176.0,28175.0,0.3937]
[1680528442776,0.00018,28178.0,28176.0,0.042869]
[1680528443055,0.18,28182.0,28178.0,0.073232]
[1680528443056,0.18018,28182.0,28178.0,0.073232]
[1680528443274,0.42895924,28181.0,28178.0,0.0005965]
[1680528443497,0.42895924,28181.0,28173.0,0.00018]
[1680528443498,0.017744,28178.0,28173.0,0.00018]
[1680528443718,0.18,28170.0,28163.0,0.02]
[1680528443937,0.42895924,28169.0,28163.0,0.02]
[1680528444162,0.0838,28164.0,28161.0,0.056609]
[1680528444383,0.15808427,28163.0,28162.0,0.017754]
[1680528444638,0.15808427,28163.0,28161.0,0.038854]
[1680528445064,0.0841,28163.0,28161.0,0.0211]
[1680528446155,0.0841,28163.0,28162.0,0.028]
[1680528446373,0.0841,28163.0,28162.0,0.02608326]
[1680528447035,0.0841,28163.0,28162.0,0.04708326]
[1680528450340,0.0841,28163.0,28162.0,0.02608326]
[1680528450557,0.0841,28163.0,28162.0,0.04708326]
[1680528450794,0.0841,28163.0,28162.0,0.06483726]
[1680528453073,0.00018,28164.0,28162.0,0.06483726]
[1680528453273,0.08428,28165.0,28162.0,0.04708326]
[1680528453517,0.00018,28165.0,28162.0,0.10034526]
[1680528453893,0.00018,28165.0,28162.0,0.07934526]
[1680528454113,0.00018,28165.0,28162.0,0.09434526]
[1680528454320,0.00018,28165.0,28162.0,0.07934526]
[1680528454467,0.00018,28166.0,28162.0,0.07934526]
[1680528455338,0.00018,28167.0,28163.0,0.02]
[1680528455538,0.00018,28168.0,28164.0,0.124271]
[1680528455742,0.00018,28168.0,28164.0,0.26624587]
[1680528455945,0.00018,28168.0,28164.0,0.124271]
[1680528456552,0.00018,28169.0,28164.0,0.124271]
[1680528456961,0.00018,28169.0,28164.0,0.29424587]
[1680528457172,0.00018,28169.0,28164.0,0.26624587]
[1680528457384,0.00018,28169.0,28164.0,0.124271]
[1680528458355,0.00018,28169.0,28164.0,0.152271]
[1680528458527,0.00018,28169.0,28164.0,0.124271]
[1680528458757,0.00018,28169.0,28165.0,0.35497497]
[1680528458956,0.00018,28169.0,28166.0,0.017751]
[1680528459292,0.00018,28169.0,28166.0,0.37272597]
[1680528460210,0.00018,28169.0,28166.0,0.40072597]
[1680528461099,0.00018,28169.0,28166.0,0.045751]
[1680528461363,0.00018,28169.0,28167.0,0.02562711]
[1680528461585,0.014434,28169.0,28167.0,0.02562711]
[1680528461846,0.014434,28169.0,28167.0,0.04337711]
[1680528462143,0.013869,28168.0,28167.0,0.02562711]
[1680528462414,0.014203,28169.0,28167.0,0.02562711]
[1680528462668,0.014203,28169.0,28167.0,0.05362711]
[1680528462888,0.014023,28169.0,28167.0,0.02562711]
[1680528463105,0.014203,28169.0,28167.0,0.04662711]
[1680528463325,0.014203,28169.0,28167.0,0.021]
[1680528463569,0.014203,28169.0,28166.0,0.017751]
[1680528463997,0.014203,28169.0,28164.0,0.035505]
[1680528464237,0.07416427,28169.0,28166.0,0.017751]
[1680528464473,0.013916,28168.0,28167.0,0.05362711]
[1680528464688,0.013921,28169.0,28167.0,0.02562711]
[1680528465349,0.013921,28169.0,28166.0,0.045751]
[1680528465603,0.013921,28169.0,28166.0,0.017751]
[1680528465836,0.013921,28169.0,28167.0,0.021]
[1680528466024,0.013741,28169.0,28167.0,0.021]
[1680528466286,0.013921,28169.0,28166.0,0.017751]
[1680528467489,0.00018,28169.0,28168.0,0.157051]
[1680528467613,1.9568,28175.0,28168.0,0.137051]
[1680528467614,0.00015394,28172.0,28168.0,0.137051]
[1680528467849,0.00015394,28176.0,28171.0,0.02]
[1680528468101,0.18,28178.0,28172.0,0.19521687]
[1680528468325,0.18015394,28178.0,28172.0,0.19521687]
[1680528468546,0.18,28178.0,28173.0,0.02]
[1680528468792,0.18,28178.0,28174.0,0.19521387]
[1680528469230,0.18,28178.0,28174.0,0.053239]
[1680528469616,0.013771,28177.0,28174.0,0.053239]
[1680528470041,0.18,28178.0,28174.0,0.053239]
[1680528470822,0.01426,28177.0,28174.0,0.074239]
[1680528471014,0.18,28178.0,28174.0,0.053239]
[1680528471394,0.18,28178.0,28174.0,0.074239]
[1680528471602,0.18,28178.0,28174.0,0.053239]
[1680528471818,0.18,28178.0,28174.0,0.074239]
[1680528472030,0.18,28178.0,28174.0,0.053239]
[1680528472243,0.18,28178.0,28174.0,0.074239]
[1680528473686,0.18,28178.0,28174.0,0.053239]
[1680528473899,0.18,28178.0,28174.0,0.081239]
[1680528474135,0.18,28178.0,28174.0,0.053239]
[1680528474353,0.014123,28177.0,28174.0,0.081239]
[1680528474797,0.18,28178.0,28174.0,0.053239]
[1680528475044,0.18,28178.0,28174.0,0.081239]
[1680528475284,0.18,28178.0,28174.0,0.053239]
[1680528476402,0.18,28178.0,28175.0,0.02833931]
[1680528476638,0.18,28178.0,28176.0,0.017745]
[1680528476862,0.013908,28177.0,28176.0,0.017745]
[1680528477310,0.18,28178.0,28176.0,0.017745]
[1680528477560,0.00015394,28179.0,28176.0,0.017745]
[1680528477801,0.26415394,28182.0,28176.0,0.045745]
[1680528478026,0.36870097,28181.0,28177.0,0.14197487]
[1680528478265,0.013748,28180.0,28178.0,0.017744]
[1680528478487,0.36887691,28180.0,28178.0,0.017744]
[1680528478711,0.014251,28179.0,28178.0,0.017744]
[1680528478944,0.01440494,28179.0,28178.0,0.017744]
[1680528479175,0.014251,28179.0,28178.0,0.017744]
[1680528479629,0.01344494,28181.0,28178.0,0.032744]
[1680528479850,0.01433,28180.0,28178.0,0.032744]
[1680528480353,0.01433,28180.0,28179.0,0.02509722]
[1680528480577,0.08497095,28184.0,28179.0,0.04284022]
[1680528480578,0.01372694,28183.0,28179.0,0.04284022]
[1680528480798,0.36870191,28183.0,28179.0,0.04284022]
[1680528481029,0.013957,28182.0,28179.0,0.18481509]
[1680528481256,0.01411694,28183.0,28179.0,0.04284022]
[1680528481449,0.01411694,28183.0,28179.0,0.017743]
[1680528481730,0.16411694,28183.0,28179.0,0.017743]
[1680528481963,0.013477,28182.0,28179.0,0.017743]
[1680528482412,0.013477,28182.0,28177.0,0.02]
[1680528482661,0.08746127,28182.0,28179.0,0.017743]
[1680528482896,0.013205,28181.0,28179.0,0.045743]
[1680528483115,0.01444694,28182.0,28179.0,0.017743]
[1680528483335,0.014293,28182.0,28179.0,0.017743]
[1680528484012,0.014293,28182.0,28179.0,0.045743]
[1680528485119,0.014293,28182.0,28179.0,0.017743]
[1680528485352,0.014293,28182.0,28179.0,0.038743]
[1680528485595,0.014293,28182.0,28179.0,0.017743]
[1680528485788,0.014293,28182.0,28179.0,0.045743]
[1680528486467,0.014293,28182.0,28179.0,0.017743]
[1680528486694,0.01422694,28183.0,28179.0,0.045743]
[1680528486804,0.36920191,28183.0,28179.0,0.045743]
[1680528487030,0.01423,28182.0,28179.0,0.045743]
[1680528487452,0.01438394,28182.0,28179.0,0.028]
[1680528487670,0.01438394,28182.0,28178.0,0.017743]
[1680528487898,0.01423,28182.0,28178.0,0.017743]
[1680528488328,0.01423,28182.0,28179.0,0.028]
[1680528488546,0.01438394,28182.0,28179.0,0.017743]
[1680528488771,0.01423,28182.0,28179.0,0.017743]
[1680528489019,0.01438394,28182.0,28179.0,0.017743]
[1680528489249,0.01423,28182.0,28179.0,0.032743]
[1680528489475,0.01423,28182.0,28179.0,0.017743]
[1680528489906,0.01412702,28182.0,28179.0,0.017743]
[1680528490114,0.35497497,28181.0,28179.0,0.017743]
[1680528490368,0.00012,28184.0,28183.0,0.02]
[1680528490603,0.1274367,28187.0,28186.0,0.02]
[1680528490604,6e-05,28187.0,28186.0,0.02]
[1680528490838,0.02321,28190.0,28189.0,0.02]
[1680528491075,0.02321,28190.0,28189.0,0.21518587]
[1680528491291,0.02321,28190.0,28189.0,0.12471]
[1680528492750,0.02321,28190.0,28189.0,0.67986497]
[1680528493003,0.02321,28190.0,28189.0,0.77986497]
[1680528493207,0.02321,28190.0,28189.0,0.97986497]
[1680528493655,0.02321,28190.0,28189.0,1.00786497]
[1680528493801,0.02321,28190.0,28189.0,0.97986497]
[1680528494206,0.02321,28190.0,28189.0,1.09166497]
[1680528494421,0.02321,28190.0,28189.0,1.36129497]
[1680528494861,0.02321,28190.0,28189.0,1.12749497]
[1680528495313,0.02321,28190.0,28189.0,1.45424297]
[1680528496221,0.02321,28190.0,28189.0,1.48224297]
[1680528496888,0.02321,28190.0,28189.0,1.45424297]
[1680528497126,0.02321,28190.0,28189.0,1.48224297]
[1680528497576,0.02321,28190.0,28189.0,1.5000065]
[1680528498955,0.02321,28190.0,28189.0,1.55377532]
[1680528500309,0.02321,28190.0,28189.0,1.52577532]
[1680528500518,0.02321,28190.0,28189.0,1.55377532]
[1680528500735,0.02321,28190.0,28189.0,1.53377532]
[1680528500952,0.02321,28190.0,28189.0,1.55377532]
[1680528501644,0.02321,28190.0,28189.0,1.52577532]
[1680528501878,0.02321,28190.0,28189.0,1.55377532]
[1680528502102,0.02321,28190.0,28189.0,1.52577532]
[1680528502319,0.02321,28190.0,28189.0,1.55377532]
[1680528505840,0.02321,28190.0,28189.0,1.52577532]
[1680528506075,0.02321,28190.0,28189.0,1.55377532]
[1680528506317,0.02079422,28190.0,28189.0,1.54993314]
[1680528506553,0.02079422,28190.0,28189.0,1.57775314]
[1680528507002,0.00012883,28190.0,28189.0,1.57775314]
[1680528507232,0.01866946,28191.0,28190.0,0.15]
[1680528507457,0.01866946,28191.0,28190.0,1.10864297]
[1680528507926,0.01866946,28191.0,28190.0,2.20760797]
[1680528508176,0.02321,28195.0,28194.0,0.5737]
[1680528508441,0.02321,28195.0,28194.0,2.67394884]
[1680528508677,0.01821,28195.0,28194.0,2.8582375]
[1680528508900,0.01821,28195.0,28194.0,3.3584175]
[1680528509377,0.01110924,28195.0,28194.0,3.3582375]
[1680528509605,0.01110924,28195.0,28194.0,1.7666675]
[1680528509836,0.01110924,28195.0,28194.0,1.33811897]
[1680528510302,0.01110924,28195.0,28194.0,1.34661897]
[1680528510764,0.01110924,28195.0,28194.0,1.72031897]
[1680528511269,0.01110924,28195.0,28194.0,1.34661897]
[1680528511502,0.01110924,28195.0,28194.0,1.33811897]
[1680528511940,0.01110924,28195.0,28194.0,1.8214825]
[1680528512892,0.01110924,28195.0,28194.0,1.42151897]
[1680528513106,0.01110924,28195.0,28194.0,1.33741897]
[1680528513983,0.01110924,28195.0,28194.0,1.71111897]
[1680528514216,0.01110924,28195.0,28194.0,1.71961897]
[1680528514444,0.01110924,28195.0,28194.0,1.76394593]
[1680528514445,0.0084529,28195.0,28194.0,1.76394593]
[1680528515416,0.00581553,28195.0,28194.0,1.76394593]
[1680528515837,0.00081553,28195.0,28194.0,1.76394593]
[1680528516274,0.02321,28196.0,28195.0,0.15]
[1680528516504,0.02321,28196.0,28195.0,1.10319497]
[1680528517243,0.02321,28196.0,28195.0,1.15469244]
[1680528517679,0.02321,28196.0,28195.0,1.14619244]
[1680528518158,0.02321,28196.0,28195.0,0.77249244]
[1680528519311,0.02321,28196.0,28195.0,0.78099244]
[1680528520307,0.01237,28196.0,28195.0,0.79893597]
[1680528520528,0.01237,28196.0,28195.0,1.15487244]
[1680528520955,0.01237,28196.0,28195.0,0.78117244]
[1680528521400,0.01237,28196.0,28195.0,0.78099244]
[1680528521611,0.01237,28196.0,28195.0,1.17245597]
[1680528521832,0.01237,28196.0,28195.0,1.37469244]
[1680528522457,0.0097584,28196.0,28195.0,1.37469244]
[1680528522904,0.0097584,28196.0,28195.0,1.39245597]
[1680528523126,0.0097584,28196.0,28195.0,1.37469244]
[1680528523337,0.00716545,28196.0,28195.0,1.37469244]
[1680528524427,0.00459102,28196.0,28195.0,1.37469244]
[1680528524694,0.40918601,28200.0,28199.0,0.05553]
[1680528524926,0.40918601,28200.0,28199.0,1.13633884]
[1680528525201,0.4048502,28200.0,28199.0,1.1267775]
[1680528525444,0.40229858,28200.0,28199.0,1.50823013]
[1680528525667,0.40229858,28200.0,28199.0,1.13453013]
[1680528526131,0.40247858,28200.0,28199.0,1.13435013]
[1680528526351,0.40247858,28200.0,28199.0,1.19806013]
[1680528526352,0.39982457,28200.0,28199.0,1.19806013]
[1680528526599,0.40000457,28200.0,28199.0,1.16988013]
[1680528526828,0.40000457,28200.0,28199.0,1.19788013]
[1680528527263,0.40000457,28200.0,28199.0,1.58026013]
[1680528527264,0.39735898,28200.0,28199.0,1.58026013]
[1680528528175,0.37817898,28200.0,28199.0,1.58026013]
[1680528528400,0.37817898,28200.0,28199.0,1.58008013]
[1680528528401,0.37591428,28200.0,28199.0,1.58008013]
[1680528528861,0.37591428,28200.0,28199.0,1.55208013]
[1680528529082,0.37591428,28200.0,28199.0,1.58008013]
[1680528529302,0.37330705,28200.0,28199.0,1.55226013]
[1680528529520,0.37330705,28200.0,28199.0,1.58026013]
[1680528529725,0.37330705,28200.0,28199.0,1.55226013]
[1680528529953,0.37330705,28200.0,28199.0,1.63270491]
[1680528530385,0.37089715,28200.0,28199.0,1.60470491]
[1680528530608,0.37089715,28200.0,28199.0,1.63270491]
[1680528530816,0.37107715,28200.0,28199.0,1.60444247]
[1680528531043,0.35131523,28200.0,28199.0,1.60462247]
[1680528531495,0.34892255,28200.0,28199.0,1.622386]
[1680528531725,0.34892255,28200.0,28199.0,1.650386]
[1680528531950,0.34892255,28200.0,28199.0,1.622386]
[1680528532388,0.34654696,28200.0,28199.0,1.650386]
[1680528532611,0.34654696,28200.0,28199.0,1.622386]
[1680528532836,0.34641263,28200.0,28199.0,1.650386]
[1680528533054,0.34641263,28200.0,28199.0,1.622386]
[1680528533274,0.34405401,28200.0,28199.0,1.650386]
[1680528533504,0.34405401,28200.0,28199.0,1.404858]
[1680528533724,0.34405401,28200.0,28199.0,1.734286]
[1680528534436,0.34172747,28200.0,28199.0,1.734286]
[1680528534654,0.34172747,28200.0,28199.0,1.706286]
[1680528534877,0.34172747,28200.0,28199.0,1.734286]
[1680528535102,0.34172747,28200.0,28199.0,1.622486]
[1680528535328,0.33941755,28200.0,28199.0,1.650486]
[1680528535596,0.33941755,28200.0,28199.0,1.622486]
[1680528535802,0.33941755,28200.0,28199.0,1.650486]
[1680528536258,0.33712413,28200.0,28199.0,1.622486]
[1680528536486,0.32523299,28200.0,28199.0,1.622486]
[1680528536953,0.32523299,28200.0,28199.0,1.650486]
[1680528537386,0.32295595,28200.0,28199.0,1.650486]
[1680528537817,0.32295595,28200.0,28199.0,1.622486]
[1680528538089,0.32295595,28200.0,28199.0,1.650486]
[1680528538300,0.32069517,28200.0,28199.0,1.650486]
[1680528538740,0.00426,28201.0,28200.0,0.0838]
[1680528538963,0.02569167,28207.0,28206.0,0.62914756]
[1680528539182,0.02569167,28207.0,28206.0,1.8692644]
[1680528539183,0.0118465,28207.0,28206.0,1.8692644]
[1680528539416,0.0118465,28207.0,28206.0,1.74505306]
[1680528540316,0.0118465,28207.0,28206.0,1.71878953]
[1680528540565,0.0118465,28207.0,28206.0,1.72728953]
[1680528540801,0.0118465,28207.0,28206.0,1.77305306]
[1680528541947,0.0118465,28207.0,28206.0,1.74505306]
[1680528542075,0.0118465,28207.0,28206.0,1.77305306]
[1680528545274,0.0118465,28207.0,28206.0,1.74505306]
[1680528545479,0.0118465,28207.0,28206.0,1.77305306]
[1680528545965,0.0118465,28207.0,28206.0,1.83868953]
[1680528546189,0.0118465,28207.0,28206.0,2.15798953]
[1680528546190,6.5e-06,28207.0,28206.0,2.15798953]
[1680528546395,0.04,28210.0,28209.0,0.42914756]
[1680528546606,0.04,28210.0,28209.0,1.35019053]
[1680528547457,0.03782874,28210.0,28209.0,1.59990309]
[1680528548323,0.03782874,28210.0,28209.0,0.89807309]
[1680528548324,0.11181301,28210.0,28209.0,0.89807309]
[1680528548535,0.11181301,28210.0,28209.0,0.95051116]
[1680528548536,0.03567299,28210.0,28209.0,0.95051116]
[1680528548744,0.03567299,28210.0,28209.0,0.92251116]
[1680528549365,0.02853264,28210.0,28209.0,0.92251116]
[1680528550020,0.02853264,28210.0,28209.0,0.95051116]
[1680528550441,0.02639261,28210.0,28209.0,0.95051116]
[1680528550922,0.02639261,28210.0,28209.0,0.92251116]
[1680528551489,0.02426787,28210.0,28209.0,0.95051116]
[1680528552345,0.0221583,28210.0,28209.0,0.95051116]
[1680528553412,0.0200638,28210.0,28209.0,0.95051116]
[1680528554275,0.01798426,28210.0,28209.0,0.95051116]
[1680528554712,0.01798426,28210.0,28209.0,0.95033352]
[1680528555358,0.01591958,28210.0,28209.0,0.95033352]
[1680528557397,0.01386964,28210.0,28209.0,0.95033352]
[1680528558286,0.01183435,28210.0,28209.0,0.95033352]
[1680528559325,0.00981359,28210.0,28209.0,0.95033352]
[1680528560386,0.00780727,28210.0,28209.0,0.95033352]
[1680528560803,0.00780727,28210.0,28209.0,0.89789545]
[1680528561500,0.00581528,28210.0,28209.0,0.89789545]
[1680528561725,0.00581528,28210.0,28209.0,0.10288556]
[1680528561726,0.16389955,28210.0,28209.0,0.10288556]
[1680528561936,0.36383172,28210.0,28209.0,0.04971256]
[1680528562383,0.36383172,28210.0,28209.0,0.045724]
[1680528562849,0.36383172,28210.0,28209.0,0.017724]
[1680528563056,0.36383172,28210.0,28209.0,0.032724]
[1680528563268,0.36401172,28210.0,28209.0,0.017724]
[1680528564314,0.36401172,28210.0,28209.0,0.032724]
[1680528564528,0.36401172,28210.0,28209.0,0.017724]
[1680528565232,0.36401172,28210.0,28209.0,0.032724]
[1680528566100,0.36401172,28210.0,28209.0,0.015]
[1680528570084,0.18008244,28206.0,28205.0,0.00890887]
[1680528570296,0.26418244,28206.0,28205.0,0.00890887]